[Event "XIII Figueira da Foz Open 2019"]
[Site "Figueira da Foz"]
[Date "2019.10.27"]
[Round "1.2"]
[White "Tadevosyan, Aspet"]
[Black "Maiorov, Nikita"]
[Result "0-1"]
[ECO "E32"]
[WhiteElo "1998"]
[BlackElo "2517"]
[Annotator "RC"]
[PlyCount "70"]
[EventDate "2019.10.27"]
[EventType "swiss"]
[EventCountry "POR"]
[SourceTitle "playchess.com"]
[Source "ChessBase"]
[SourceQuality "1"]
[TimeControl "40/5400+30:1800+30"]

1. d4 {[%emt 0:00:00]} Nf6 {[%emt 0:00:07]} 2. c4 {[%emt 0:00:00]} e6 {[%emt 0:00:09]} 3. Nc3 {[%emt 0:00:22]} Bb4 {[%emt 0:00:05]} 4. Qc2 {[%emt 0:00:09]} O-O {[%emt 0:00:29]} 5. a3 {[%emt 0:00:28]} Bxc3+ {[%emt 0:00:05]} 6. Qxc3 {[%emt 0:00:05]} b6 {[%emt 0:02:20]} 7. Bg5 {[%emt 0:00:39]} c5 {[%emt 0:00:09]} 8. dxc5 {[%emt 0:11:14]} bxc5 {[%emt 0:00:04]} 9. Nf3 {[%emt 0:00:08]} d6 {[%emt 0:00:13]} 10. e3 {[%emt 0:03:27]} a5 {[%emt 0:00:24]} 11. Bd3 {[%emt 0:02:44]} Nbd7 {[%emt 0:03:36]} 12. O-O {[%emt 0:07:58]} Bb7 {[%emt 0:00:12]} 13. Rfd1 {[%emt 0:01:40]} Ra6 {[%emt 0:02:03]} 14. Nd2 {[%emt 0:21:28]} Qa8 {[%emt 0:00:51]} 15. f3 {[%emt 0:00:41]} Rb8 {[%emt 0:00:56]} 16. Nf1 {[%emt 0:13:07]} Rb6 {[%emt 0:02:01]} 17. Be2 {[%emt 0:01:20]} Ne8 {[%emt 0:12:59]} 18. Bf4 {[%emt 0:01:47]} a4 {[%emt 0:03:13]} 19. Rd2 {[%emt 0:03:09]} e5 {[%emt 0:04:26]} 20. Bg3 {[%emt 0:00:35]} Bc6 {[%emt 0:00:20]} 21. Bd1 {[%emt 0:01:55]} Qb7 {[%emt 0:02:05]} 22. Rb1 {[%emt 0:00:34]} Ndf6 {[%emt 0:02:15]} 23. Bh4 {[%emt 0:01:50]} Qe7 {[%emt 0:05:18]} 24. Bc2 {[%emt 0:04:24]} Qe6 {[%emt 0:11:24]} 25. Ng3 {[%emt 0:02:58]} h6 {[%emt 0:01:30]} 26. Nf5 {[%emt 0:03:36]} e4 {[%emt 0:03:33]} 27. Bxf6 {[%emt 0:01:43]} Qxf5 {[%emt 0:03:08]} 28. Bh4 {[%emt 0:06:18]} Qh5 {[%emt 0:00:33]} 29. Bg3 {[%emt 0:00:15]} exf3 {[%emt 0:00:51]} 30. e4 {[%emt 0:00:07]} fxg2 {[%emt 0:07:54]} 31. Rxg2 {[%emt 0:00:06]} f6 {[%emt 0:02:36]} 32. Rf1 {[%emt 0:05:52]} Rxb2 {[%emt 0:04:09]} 33. Rf5 {[%emt 0:00:34]} Qg4 {[%emt 0:07:33]} 34. Bf4 {[%emt 0:01:38]} Qxg2+ {[%emt 0:00:58]} 35. Kxg2 {[%emt 0:00:11]} Bxe4+ {[%emt 0:00:04]} 0-1

[Event "XIII Figueira da Foz Open 2019"]
[Site "Figueira da Foz"]
[Date "2019.10.27"]
[Round "1.3"]
[White "Spraggett, Kevin"]
[Black "Adams, Philip"]
[Result "1-0"]
[ECO "A61"]
[WhiteElo "2513"]
[BlackElo "1993"]
[Annotator "RC"]
[PlyCount "51"]
[EventDate "2019.10.27"]
[EventType "swiss"]
[EventCountry "POR"]
[SourceTitle "playchess.com"]
[Source "ChessBase"]
[SourceQuality "1"]
[TimeControl "40/5400+30:1800+30"]

1. d4 {[%emt 0:00:00]} Nf6 {[%emt 0:00:00]} 2. c4 {[%emt 0:00:23]} e6 {[%emt 0:00:09]} 3. Nf3 {[%emt 0:00:35]} c5 {[%emt 0:00:40]} 4. d5 {[%emt 0:00:33]} d6 {[%emt 0:00:10]} 5. Nc3 {[%emt 0:00:23]} exd5 {[%emt 0:00:06]} 6. cxd5 {[%emt 0:00:05]} g6 {[%emt 0:00:11]} 7. Nd2 {[%emt 0:00:23]} Bg7 {[%emt 0:00:23]} 8. e4 {[%emt 0:00:11]} O-O {[%emt 0:00:24]} 9. Be2 {[%emt 0:00:07]} Ne8 {[%emt 0:02:03]} 10. O-O {[%emt 0:00:37]} f5 {[%emt 0:00:33]} 11. exf5 {[%emt 0:02:30]} Bxf5 {[%emt 0:00:27]} 12. Nde4 {[%emt 0:00:58]} Na6 {[%emt 0:04:24]} 13. Bg5 {[%emt 0:05:05]} Qb6 {[%emt 0:02:42]} 14. Qd2 {[%emt 0:01:39]} Rf7 {[%emt 0:11:45]} 15. Ng3 {[%emt 0:05:32]} Bd7 {[%emt 0:05:32]} 16. h4 {[%emt 0:02:08]} Nac7 {[%emt 0:05:08]} 17. h5 {[%emt 0:01:07]} Nb5 {[%emt 0:08:40]} 18. hxg6 {[%emt 0:01:18]} hxg6 {[%emt 0:00:05]} 19. Bd3 {[%emt 0:02:44]} Nxc3 {[%emt 0:07:16]} 20. bxc3 {[%emt 0:00:24]} Bf5 {[%emt 0:00:21]} 21. Bxf5 {[%emt 0:23:33]} gxf5 {[%emt 0:00:22]} 22. Qc2 {[%emt 0:00:06]} f4 {[%emt 0:05:39]} 23. Nf5 {[%emt 0:00:23]} Qc7 {[%emt 0:06:40]} 24. Rae1 {[%emt 0:09:45]} f3 {[%emt 0:05:35]} 25. Ne7+ {[%emt 0:02:21]} Kh8 {[%emt 0:01:44]} 26. Qg6 {[%emt 0:01:11] Kg8} 1-0

[Event "XIII Figueira da Foz Open 2019"]
[Site "Figueira da Foz"]
[Date "2019.10.27"]
[Round "1.4"]
[White "Heeren, Arnoldo"]
[Black "Jakubowski, Krzysztof"]
[Result "0-1"]
[ECO "A06"]
[WhiteElo "1929"]
[BlackElo "2494"]
[Annotator "RC"]
[PlyCount "50"]
[EventDate "2019.10.27"]
[EventType "swiss"]
[EventCountry "POR"]
[SourceTitle "playchess.com"]
[Source "ChessBase"]
[SourceQuality "1"]
[TimeControl "40/5400+30:1800+30"]

1. Nf3 {[%emt 0:00:02]} d5 {[%emt 0:02:56]} 2. g3 {[%emt 0:00:13]} c6 {[%emt 0:00:13]} 3. Bg2 {[%emt 0:00:12]} Bg4 {[%emt 0:00:12]} 4. O-O {[%emt 0:00:34]} Nd7 {[%emt 0:00:00]} 5. d4 {[%emt 0:00:23]} e6 {[%emt 0:00:10]} 6. Nc3 {[%emt 0:00:21]} f5 {[%emt 0:00:21]} 7. Qd3 {[%emt 0:01:43]} Qf6 {[%emt 0:13:02]} 8. Bf4 {[%emt 0:03:50]} Bxf3 {[%emt 0:00:35]} 9. Bxf3 {[%emt 0:00:43]} g5 {[%emt 0:02:55]} 10. Bd2 {[%emt 0:01:32]} h5 {[%emt 0:01:16]} 11. e3 {[%emt 0:02:16]} h4 {[%emt 0:01:53]} 12. Kg2 {[%emt 0:02:51]} Ne7 {[%emt 0:01:22]} 13. Rh1 {[%emt 0:02:37]} e5 {[%emt 0:00:29]} 14. dxe5 {[%emt 0:00:26]} Nxe5 {[%emt 0:00:17]} 15. Qd4 {[%emt 0:00:41]} Bg7 {[%emt 0:10:37]} 16. Be2 {[%emt 0:02:18]} Qf7 {[%emt 0:06:54]} 17. Qb4 {[%emt 0:02:27]} O-O-O {[%emt 0:02:48]} 18. f4 {[%emt 0:03:39]} Nc4 {[%emt 0:00:47]} 19. Bxc4 {[%emt 0:02:43]} dxc4 {[%emt 0:00:06]} 20. Rad1 {[%emt 0:01:20]} hxg3 {[%emt 0:00:27]} 21. hxg3 {[%emt 0:00:46]} Rxh1 {[%emt 0:00:10]} 22. Kxh1 {[%emt 0:00:13]} Nd5 {[%emt 0:00:52]} 23. Nxd5 {[%emt 0:01:50]} Qh5+ {[%emt 0:01:15]} 24. Kg2 {[%emt 0:00:26]} Qe2+ {[%emt 0:00:06]} 25. Kg1 {[%emt 0:01:17]} Qxd1+ {[%emt 0:00:07]} 0-1

[Event "XIII Figueira da Foz Open 2019"]
[Site "Figueira da Foz"]
[Date "2019.10.27"]
[Round "1.5"]
[White "Stella, Andrea"]
[Black "Puglia, Francesco"]
[Result "1-0"]
[ECO "D73"]
[WhiteElo "2484"]
[BlackElo "1916"]
[Annotator "RC"]
[PlyCount "47"]
[EventDate "2019.10.27"]
[EventType "swiss"]
[EventCountry "POR"]
[SourceTitle "playchess.com"]
[Source "ChessBase"]
[SourceQuality "1"]
[TimeControl "40/5400+30:1800+30"]

1. d4 {[%emt 0:00:00]} Nf6 {[%emt 0:00:00]} 2. c4 {[%emt 0:00:00]} g6 {[%emt 0:00:00]} 3. g3 {[%emt 0:00:00]} Bg7 {[%emt 0:00:00]} 4. Bg2 {[%emt 0:00:00]} d5 {[%emt 0:00:00]} 5. Nf3 {[%emt 0:00:35]} dxc4 {[%emt 0:00:06]} 6. Na3 {[%emt 0:01:05]} c3 {[%emt 0:00:03]} 7. bxc3 {[%emt 0:00:09]} c5 {[%emt 0:02:08]} 8. O-O {[%emt 0:00:08]} O-O {[%emt 0:00:49]} 9. Re1 {[%emt 0:00:19]} Nc6 {[%emt 0:01:35]} 10. Bb2 {[%emt 0:00:04]} Ne4 {[%emt 0:17:58]} 11. Qc2 {[%emt 0:14:00]} f5 {[%emt 0:14:17]} 12. Rad1 {[%emt 0:05:46]} Qc7 {[%emt 0:04:36]} 13. d5 {[%emt 0:09:29]} Ne5 {[%emt 0:05:48]} 14. Nxe5 {[%emt 0:04:54]} Qxe5 {[%emt 0:03:18]} 15. Ba1 {[%emt 0:26:19]} Qf6 {[%emt 0:05:31]} 16. c4 {[%emt 0:01:15]} Qf7 {[%emt 0:11:40]} 17. Bxg7 {[%emt 0:01:39]} Kxg7 {[%emt 0:00:19]} 18. Nb5 {[%emt 0:10:24]} e5 {[%emt 0:22:48]} 19. Qb2 {[%emt 0:09:08]} Qf6 {[%emt 0:03:33]} 20. d6 {[%emt 0:00:33]} Be6 {[%emt 0:03:58]} 21. Nc7 {[%emt 0:02:18]} Rad8 {[%emt 0:01:13]} 22. f4 {[%emt 0:07:33]} Bxc4 {[%emt 0:00:42]} 23. fxe5 {[%emt 0:00:13]} Qf7 {[%emt 0:00:23]} 24. e6+ {[%emt 0:00:53]} 1-0

[Event "XIII Figueira da Foz Open 2019"]
[Site "Figueira da Foz"]
[Date "2019.10.27"]
[Round "1.6"]
[White "Silva, Mariana Sofia T."]
[Black "Galego, Luis"]
[Result "0-1"]
[ECO "A05"]
[WhiteElo "1880"]
[BlackElo "2483"]
[Annotator "RC"]
[PlyCount "22"]
[EventDate "2019.10.27"]
[EventType "swiss"]
[EventCountry "POR"]
[SourceTitle "playchess.com"]
[Source "ChessBase"]
[SourceQuality "1"]
[TimeControl "40/5400+30:1800+30"]

1. Nf3 {[%emt 0:00:00]} Nf6 {[%emt 0:03:22]} 2. g3 {[%emt 0:00:00]} d5 {[%emt 0:00:47]} 3. Bg2 {[%emt 0:00:16]} c6 {[%emt 0:00:17]} 4. b3 {[%emt 0:00:34]} g6 {[%emt 0:00:46]} 5. Bb2 {[%emt 0:00:10]} Bg7 {[%emt 0:00:06]} 6. O-O {[%emt 0:00:32]} O-O {[%emt 0:00:10]} 7. c4 {[%emt 0:01:28]} Bg4 {[%emt 0:03:19]} 8. h3 {[%emt 0:03:54]} Bxf3 {[%emt 0:00:50]} 9. Bxf3 {[%emt 0:00:09]} Re8 {[%emt 0:02:24]} 10. d4 {[%emt 0:03:55]} Nbd7 {[%emt 0:03:16]} 11. cxd5 {[%emt 0:03:50]} Nxd5 {[%emt 0:05:17]} 0-1

[Event "XIII Figueira da Foz Open 2019"]
[Site "Figueira da Foz"]
[Date "2019.10.27"]
[Round "1.7"]
[White "Klekowski, Maciej"]
[Black "Babo, Miguel"]
[Result "1-0"]
[ECO "A13"]
[WhiteElo "2481"]
[BlackElo "1827"]
[Annotator "RC"]
[PlyCount "51"]
[EventDate "2019.10.27"]
[EventType "swiss"]
[EventCountry "POR"]
[SourceTitle "playchess.com"]
[Source "ChessBase"]
[SourceQuality "1"]
[TimeControl "40/5400+30:1800+30"]

1. c4 e6 {[%emt 0:03:28]} 2. Nf3 {[%emt 0:00:00]} Nf6 {[%emt 0:00:46]} 3. g3 b6 4. Bg2 Bb7 5. O-O Be7 6. Nc3 O-O 7. Re1 d6 8. e4 Nbd7 9. d4 a6 10. e5 Ne8 11. Qc2 Rb8 12. Bf4 Bxf3 13. Bxf3 Bg5 14. Bxg5 Qxg5 15. Bc6 Rd8 16. Rad1 Nb8 17. Bg2 c6 18. a4 dxe5 19. dxe5 Nc7 20. f4 Qe7 21. Ne4 Qb4 22. Ng5 g6 23. Ne4 Kg7 24. b3 Rd7 25. Nf6 Rd4 26. Rxd4 1-0

[Event "XIII Figueira da Foz Open 2019"]
[Site "Figueira da Foz"]
[Date "2019.10.27"]
[Round "1.10"]
[White "Gama, Joao Goncalo Cerejei"]
[Black "Barski, Radoslaw"]
[Result "0-1"]
[ECO "B51"]
[WhiteElo "1712"]
[BlackElo "2437"]
[Annotator "RC"]
[PlyCount "106"]
[EventDate "2019.10.27"]
[EventType "swiss"]
[EventCountry "POR"]
[SourceTitle "playchess.com"]
[Source "ChessBase"]
[SourceQuality "1"]
[TimeControl "40/5400+30:1800+30"]

1. e4 {[%emt 0:00:00]} c5 {[%emt 0:00:00]} 2. Nf3 {[%emt 0:00:00]} d6 {[%emt 0:00:00]} 3. Bb5+ {[%emt 0:00:00]} Nc6 {[%emt 0:01:10]} 4. O-O {[%emt 0:00:37]} Bd7 {[%emt 0:00:20]} 5. Re1 {[%emt 0:00:34]} a6 {[%emt 0:00:57]} 6. Bf1 {[%emt 0:00:14]} Nf6 {[%emt 0:00:23]} 7. c3 {[%emt 0:00:32]} Bg4 {[%emt 0:00:28]} 8. h3 {[%emt 0:01:57]} Bxf3 {[%emt 0:00:51]} 9. Qxf3 {[%emt 0:00:14]} g6 {[%emt 0:00:09]} 10. Qd1 {[%emt 0:03:28]} Bg7 {[%emt 0:07:35]} 11. d4 {[%emt 0:04:02]} cxd4 {[%emt 0:01:44]} 12. cxd4 {[%emt 0:00:05]} d5 {[%emt 0:01:31]} 13. e5 {[%emt 0:03:37]} Nd7 {[%emt 0:00:04]} 14. Nc3 {[%emt 0:00:36]} e6 {[%emt 0:00:21]} 15. Be3 {[%emt 0:01:20]} O-O {[%emt 0:00:14]} 16. a4 {[%emt 0:00:38]} f6 {[%emt 0:02:06]} 17. exf6 {[%emt 0:02:19]} Qxf6 {[%emt 0:00:16]} 18. Ne2 {[%emt 0:01:01]} Nb6 {[%emt 0:01:24]} 19. b3 {[%emt 0:03:51]} Nc8 {[%emt 0:00:16]} 20. Rc1 {[%emt 0:01:40]} Nd6 {[%emt 0:00:24]} 21. g4 {[%emt 0:10:36]} Ne4 {[%emt 0:02:20]} 22. f4 {[%emt 0:02:05]} g5 {[%emt 0:01:20]} 23. Bg2 {[%emt 0:01:54]} gxf4 {[%emt 0:00:21]} 24. Nxf4 {[%emt 0:01:49]} Nxd4 {[%emt 0:04:48]} 25. Nh5 {[%emt 0:02:03]} Nf3+ {[%emt 0:01:47]} 26. Bxf3 {[%emt 0:02:03]} Qxf3 {[%emt 0:00:12]} 27. Qxf3 {[%emt 0:00:04]} Rxf3 {[%emt 0:00:07]} 28. Nxg7 {[%emt 0:05:58]} Kxg7 {[%emt 0:01:00]} 29. Bd4+ {[%emt 0:00:06]} Kg6 {[%emt 0:00:33]} 30. Re3 {[%emt 0:01:01]} Raf8 {[%emt 0:00:45]} 31. Rxf3 {[%emt 0:00:37]} Rxf3 {[%emt 0:00:18]} 32. Rc7 {[%emt 0:00:46]} Rxh3 {[%emt 0:12:38]} 33. Rg7+ {[%emt 0:00:13]} Kh6 {[%emt 0:00:15]} 34. Rxb7 {[%emt 0:02:17]} Kg5 {[%emt 0:03:38]} 35. Rg7+ {[%emt 0:01:06]} Kf4 {[%emt 0:00:48]} 36. Rf7+ {[%emt 0:00:40]} Kxg4 {[%emt 0:00:50]} 37. Rg7+ {[%emt 0:00:05]} Ng5 {[%emt 0:00:50]} 38. b4 {[%emt 0:02:44]} Rb3 {[%emt 0:00:39]} 39. Bc5 {[%emt 0:00:53]} e5 {[%emt 0:02:10]} 40. Be7 {[%emt 0:00:00]} h6 {[%emt 0:00:00]} 41. Rg6 {[%emt 0:02:02]} Kg3 {[%emt 0:01:19]} 42. Bxg5 {[%emt 0:00:20]} hxg5 {[%emt 0:00:03]} 43. Rxg5+ {[%emt 0:00:18]} Kf4 {[%emt 0:00:02]} 44. Rh5 {[%emt 0:00:14]} d4 {[%emt 0:00:12]} 45. Rh6 {[%emt 0:00:32]} Rxb4 {[%emt 0:00:31]} 46. Rxa6 {[%emt 0:00:05]} Ke3 {[%emt 0:00:23]} 47. Re6 {[%emt 0:00:11]} e4 {[%emt 0:00:13]} 48. a5 {[%emt 0:00:02]} d3 {[%emt 0:00:26]} 49. Rd6 {[%emt 0:01:03]} d2 {[%emt 0:00:14]} 50. a6 {[%emt 0:00:02]} Rd4 {[%emt 0:00:50]} 51. Rxd4 {[%emt 0:00:16]} Kxd4 {[%emt 0:00:01]} 52. a7 {[%emt 0:00:11]} d1=Q+ {[%emt 0:00:08]} 53. Kh2 {[%emt 0:00:06]} Kd5 0-1

[Event "XIII Figueira da Foz Open 2019"]
[Site "Figueira da Foz"]
[Date "2019.10.27"]
[Round "1.14"]
[White "Dias, Jose Oliveira Gaspar"]
[Black "Gavasheli, Ana"]
[Result "0-1"]
[ECO "D00"]
[WhiteElo "1562"]
[BlackElo "2240"]
[Annotator "ChessBase"]
[PlyCount "104"]
[EventDate "2019.10.27"]
[EventType "swiss"]
[EventCountry "POR"]
[SourceTitle "playchess.com"]
[Source "ChessBase"]
[SourceQuality "1"]
[TimeControl "40/5400+30:1800+30"]

1. d4 {[%emt 0:00:00]} d5 {[%emt 0:00:00]} 2. Bf4 {[%emt 0:00:00]} Nf6 {[%emt 0:00:00]} 3. e3 {[%emt 0:00:08]} g6 {[%emt 0:00:00]} 4. Be2 {[%emt 0:00:31]} Bg7 {[%emt 0:00:00]} 5. c3 {[%emt 0:00:39]} O-O {[%emt 0:00:17]} 6. h3 {[%emt 0:00:47]} c5 {[%emt 0:00:24]} 7. Nf3 {[%emt 0:00:25]} Nc6 {[%emt 0:00:33]} 8. O-O {[%emt 0:00:18]} Nd7 {[%emt 0:00:24]} 9. Nbd2 {[%emt 0:02:30]} e5 {[%emt 0:04:38]} 10. dxe5 {[%emt 0:01:00]} Ndxe5 {[%emt 0:00:17]} 11. Nb3 {[%emt 0:09:47]} b6 {[%emt 0:02:05]} 12. Qd2 {[%emt 0:04:07]} Nc4 {[%emt 0:07:13]} 13. Qc1 {[%emt 0:02:06]} Qe7 {[%emt 0:18:54]} 14. Rd1 {[%emt 0:02:41]} Rd8 {[%emt 0:00:51]} 15. Nbd2 {[%emt 0:07:38]} b5 {[%emt 0:08:29]} 16. Nf1 {[%emt 0:01:49]} b4 {[%emt 0:06:13]} 17. Bxc4 {[%emt 0:06:04]} dxc4 {[%emt 0:00:09]} 18. Rxd8+ {[%emt 0:00:21]} Nxd8 {[%emt 0:01:18]} 19. cxb4 {[%emt 0:03:46]} cxb4 {[%emt 0:00:23]} 20. Qxc4 {[%emt 0:06:43]} Bxb2 {[%emt 0:01:12]} 21. Rb1 {[%emt 0:02:50]} Bc3 {[%emt 0:01:15]} 22. Rd1 {[%emt 0:04:50]} Be6 {[%emt 0:15:31]} 23. Qe4 {[%emt 0:02:14]} Rc8 {[%emt 0:00:16]} 24. Ng3 {[%emt 0:06:53]} Nb7 {[%emt 0:04:46]} 25. Ng5 {[%emt 0:07:11]} Nc5 {[%emt 0:02:00]} 26. Qb1 {[%emt 0:00:58]} Rd8 {[%emt 0:07:11]} 27. Nxe6 {[%emt 0:00:33]} Nxe6 {[%emt 0:00:38]} 28. Rxd8+ {[%emt 0:04:43]} Qxd8 {[%emt 0:00:07]} 29. Bh6 {[%emt 0:00:33]} Qh4 {[%emt 0:00:54]} 30. Bf4 {[%emt 0:01:00]} Nxf4 {[%emt 0:00:07]} 31. exf4 {[%emt 0:00:45]} Qxf4 {[%emt 0:00:06]} 32. Ne2 {[%emt 0:07:31]} Qe5 {[%emt 0:02:31]} 33. Qc2 {[%emt 0:00:28]} a5 {[%emt 0:00:45]} 34. Qd3 {[%emt 0:06:24]} Bb2 {[%emt 0:00:55]} 35. Kf1 {[%emt 0:04:57]} Qc5 {[%emt 0:03:32]} 36. Qb3 {[%emt 0:00:52]} Bf6 {[%emt 0:00:44]} 37. Qa4 Kg7 {[%emt 0:00:58]} 38. Qb3 {[%emt 0:03:16]} Qe5 {[%emt 0:00:31]} 39. g3 {[%emt 0:00:52]} Qe6 {[%emt 0:00:26]} 40. Qa4 {[%emt 0:00:00]} Qxh3+ {[%emt 0:00:00]} 41. Kg1 {[%emt 0:02:36]} Qf5 {[%emt 0:00:50]} 42. Qb3 {[%emt 0:04:35]} Qe4 {[%emt 0:00:32]} 43. Nf4 {[%emt 0:01:31]} Bd4 {[%emt 0:00:29]} 44. Qd1 {[%emt 0:03:17]} h5 {[%emt 0:02:02]} 45. Ne2 {[%emt 0:00:55]} Bf6 {[%emt 0:00:27]} 46. Kf1 {[%emt 0:01:27]} Qh1+ {[%emt 0:00:09]} 47. Ng1 {[%emt 0:00:02]} Qc6 {[%emt 0:00:09]} 48. Qb3 {[%emt 0:03:44]} Qb5+ {[%emt 0:00:06]} 49. Kg2 {[%emt 0:00:29]} a4 {[%emt 0:00:04]} 50. Qb1 {[%emt 0:00:33]} Qd5+ {[%emt 0:00:38]} 51. Kf1 {[%emt 0:02:40]} b3 {[%emt 0:00:23]} 52. axb3 {[%emt 0:00:47]} Qxb3 {[%emt 0:00:05]} 0-1

[Event "XIII Figueira da Foz Open 2019"]
[Site "Figueira da Foz"]
[Date "2019.10.28"]
[Round "2.12"]
[White "Guerreiro, Nuno"]
[Black "Rato, Eduardo"]
[Result "1-0"]
[ECO "B10"]
[WhiteElo "2069"]
[BlackElo "1693"]
[Annotator "NA RC"]
[PlyCount "69"]
[EventDate "2019.10.27"]
[EventType "swiss"]
[EventCountry "POR"]
[SourceTitle "playchess.com"]
[Source "ChessBase"]
[SourceQuality "1"]
[TimeControl "40/5400+30:1800+30"]

1. e4 {[%emt 0:00:32]} c6 {[%emt 0:00:28]} 2. d3 {[%emt 0:00:19]} d5 {[%emt 0:00:22]} 3. Nd2 {[%emt 0:00:06]} Nf6 {[%emt 0:01:18]} 4. Ngf3 {[%emt 0:01:02]} dxe4 {[%emt 0:04:23]} (4... Bg4 5. h3 Bh5 6. c3 e6 7. Be2 dxe4 8. dxe4 Bxf3 9. Bxf3 Nbd7 10. O-O Qc7 11. Nc4 Bc5 12. b4 Be7 13. g3 {0-1 (41) Tsydypov,Z (2529)-Popov,I (2599) Sochi 2017}) 5. dxe4 {[%emt 0:00:16]} g6 {[%emt 0:00:29]} 6. a4 {[%emt 0:03:00] B10: Caro-Kann: 2 d3 and 2 c4} Bg7 {[%emt 0:00:44]} 7. Bc4 {[%emt 0:00:14]} O-O {[%emt 0:00:48]} 8. O-O {[%emt 0:00:16]} Qc7 {[%emt 0:01:15]} 9. Qe2 {[%emt 0:01:01]} Nbd7 {[%emt 0:02:12]} 10. e5 $146 {[%emt 0:02:34]} ({Predecessor:} 10. a5 Nc5 11. Ra3 Bg4 12. h3 Be6 {½-½ (61) Wiseman,M-Cadman,C Chicago 1995}) 10... Nd5 {[%emt 0:01:29]} 11. e6 {[%emt 0:00:48]} Ne5 {[%emt 0:01:43]} 12. exf7+ {[%emt 0:01:33]} Kh8 {[%emt 0:02:57]} 13. Nxe5 {[%emt 0:01:14]} Qxe5 {[%emt 0:01:56]} 14. Qxe5 {[%emt 0:02:55]} Bxe5 {[%emt 0:00:12]} 15. Re1 {[%emt 0:01:47]} Bf6 {[%emt 0:02:48]} 16. Ne4 {[%emt 0:00:28]} Bf5 {[%emt 0:02:59]} 17. c3 {[%emt 0:09:44]} Kg7 {[%emt 0:00:32]} 18. Nc5 {[%emt 0:06:55]} b6 {[%emt 0:04:08]} 19. Ne6+ {[%emt 0:00:37]} Bxe6 {[%emt 0:03:23]} 20. Rxe6 {[%emt 0:00:09]} Rac8 {[%emt 0:00:15]} 21. g4 {[%emt 0:04:15]} g5 {[%emt 0:01:20]} 22. a5 {[%emt 0:08:41]} b5 {[%emt 0:02:50]} 23. Bxd5 {[%emt 0:01:42]} cxd5 {[%emt 0:00:35]} 24. Be3 {[%emt 0:00:08]} Rc7 {[%emt 0:00:38]} 25. Ra6 {[%emt 0:04:28]} e5 {[%emt 0:00:56]} 26. Bxa7 {[%emt 0:01:52]} Rfxf7 {[%emt 0:00:23]} 27. Bb6 {[%emt 0:01:05]} Rc8 {[%emt 0:02:04]} 28. Ra7 {[%emt 0:05:06]} d4 {[%emt 0:02:04]} 29. cxd4 {[%emt 0:03:46]} exd4 {[%emt 0:01:20]} 30. Rd1 {[%emt 0:00:40]} Rc4 {[%emt 0:03:31]} (30... Rxa7 {was necessary.} 31. Bxa7 Kf7) 31. Rxf7+ {[%emt 0:06:05]} Kxf7 {[%emt 0:00:07]} 32. b3 {[%emt 0:00:21]} Rb4 $2 {[%emt 0:00:43]} (32... Rc6 33. Kg2 b4) 33. Rd3 {[%emt 0:00:25]} Rc4 {[%emt 0:01:48]} 34. bxc4 {[%emt 0:00:14]} bxc4 {[%emt 0:00:15]} 35. Rxd4 {[%emt 0:00:40]} 1-0

[Event "XIII Figueira da Foz Open 2019"]
[Site "Figueira da Foz"]
[Date "2019.10.28"]
[Round "2.13"]
[White "Barros Gutierrez, Angel Luis"]
[Black "Tadevosyan, Aspet"]
[Result "0-1"]
[ECO "B50"]
[WhiteElo "2038"]
[BlackElo "1998"]
[Annotator "NA RC"]
[PlyCount "72"]
[EventDate "2019.10.27"]
[EventType "swiss"]
[EventCountry "POR"]
[SourceTitle "playchess.com"]
[Source "ChessBase"]
[SourceQuality "1"]
[TimeControl "40/5400+30:1800+30"]

1. e4 c5 {[%emt 0:00:00]} 2. Nf3 {[%emt 0:00:00]} d6 {[%emt 0:00:31]} 3. c3 {[%emt 0:00:08]} Nf6 {[%emt 0:00:30]} 4. h4 Nc6 {[%emt 0:02:44]} 5. d3 {[%emt 0:02:44]} g6 {[%emt 0:00:42]} 6. g3 {[%emt 0:00:42]} Bg7 7. Bg2 {[%emt 0:00:07]} O-O {[%emt 0:01:02]} 8. O-O {[%emt 0:04:20]} c4 9. dxc4 {[%emt 0:00:47]} Nxe4 {[%emt 0:03:48]} 10. Nd4 {[%emt 0:04:39]} f5 {[%emt 0:12:22]} 11. Be3 {[%emt 0:03:38]} e5 {[%emt 0:07:38]} 12. Nb5 a6 {[%emt 0:00:09]} 13. Bxe4 {[%emt 0:01:04]} axb5 {[%emt 0:00:26]} 14. Bd5+ Kh8 {[%emt 0:00:54]} 15. f4 {[%emt 0:02:42]} bxc4 {[%emt 0:03:35]} 16. Na3 {[%emt 0:07:09]} exf4 {[%emt 0:04:15]} 17. Rxf4 {[%emt 0:06:53]} g5 {[%emt 0:03:12]} 18. Rxc4 {[%emt 0:04:02]} Ne5 {[%emt 0:00:27]} 19. Rb4 {[%emt 0:07:02]} f4 {[%emt 0:00:47]} 20. Bb6 {[%emt 0:02:18]} Qf6 {[%emt 0:09:52]} 21. gxf4 {[%emt 0:05:39]} gxf4 {[%emt 0:05:59]} 22. Qh5 {[%emt 0:03:47]} f3 {[%emt 0:06:30]} 23. Rf1 {[%emt 0:07:03]} Bf5 $19 {[%emt 0:12:09]} (23... Bh6 24. Kh1 Bh3) 24. Be3 {[%emt 0:04:44]} Ra5 25. Nb5 Bg6 {[%emt 0:05:38]} 26. Qg5 {[%emt 0:02:07]} Bd3 27. Qxf6 Rxf6 {[%emt 0:00:38]} 28. a4 {[%emt 0:08:45]} Rg6+ {[%emt 0:00:17]} 29. Kf2 {[%emt 0:01:09]} Rg2+ {[%emt 0:00:51]} 30. Ke1 {[%emt 0:00:24]} Re2+ {[%emt 0:00:22]} 31. Kd1 {[%emt 0:03:15]} Rxe3 {[%emt 0:00:42]} 32. Rf2 {[%emt 0:01:21]} Be2+ {[%emt 0:00:48]} 33. Kc2 {[%emt 0:01:41]} Bxb5 34. Rxb5 Rxb5 {[%emt 0:00:44]} 35. axb5 {[%emt 0:00:38]} Bh6 36. Kd1 {[%emt 0:01:54]} Rd3+ {[%emt 0:00:08]} 0-1